bitfinex/quotes_BTCUSD_20250902
["timestamp","ask_amount","ask_price","bid_price","bid_amount"]
[1756820356890,0.85402312,110410.0,110400.0,0.06968]
[1756820357096,0.85402312,110410.0,110400.0,0.25736]
[1756820357722,0.85502312,110410.0,110400.0,0.2574]
[1756820357937,0.85502312,110410.0,110370.0,0.14322631]
[1756820357938,0.18117583,110390.0,110370.0,0.14322631]
[1756820358164,0.85398631,110380.0,110370.0,0.06968]
[1756820358377,0.85398631,110380.0,110370.0,0.36888866]
[1756820358378,0.18119224,110380.0,110370.0,0.36888866]
[1756820358589,0.85398631,110380.0,110370.0,0.18768]
[1756820359012,0.18122307,110370.0,110350.0,0.25092122]
[1756820359221,0.18122307,110370.0,110360.0,0.36874508]
[1756820359434,0.85400273,110370.0,110360.0,0.36874508]
[1756820359652,0.85400273,110370.0,110360.0,0.18752]
[1756820360331,0.67279407,110370.0,110360.0,0.36888628]
[1756820360767,0.18119279,110380.0,110370.0,0.18120866]
[1756820360987,0.85398686,110380.0,110360.0,0.36888628]
[1756820361189,0.67279407,110370.0,110360.0,0.36888628]
[1756820361399,0.67279407,110370.0,110360.0,0.0001412]
[1756820361614,0.85718273,110370.0,110360.0,0.1876212]
[1756820362023,0.85400273,110370.0,110360.0,0.1876212]
[1756820362427,0.85400273,110370.0,110360.0,0.0001412]
[1756820362646,1.04101471,110370.0,110360.0,0.0001412]
[1756820362906,1.40195353,110370.0,110360.0,0.0001412]
[1756820363097,1.50119754,110370.0,110360.0,0.0001412]
[1756820363302,0.85800273,110370.0,110360.0,0.1872212]
[1756820363519,0.85800273,110370.0,110360.0,0.0001412]
[1756820364177,0.86118273,110370.0,110360.0,0.0001412]
[1756820364385,0.85400273,110370.0,110360.0,0.18136628]
[1756820364596,0.85800273,110370.0,110360.0,0.0001412]
[1756820364801,0.86118273,110370.0,110360.0,0.1877412]
[1756820365025,0.85718273,110370.0,110360.0,0.1877412]
[1756820365224,0.85400273,110370.0,110360.0,0.1877412]
[1756820365641,0.85718273,110370.0,110360.0,0.1877412]
[1756820365892,0.94909872,110370.0,110360.0,0.0001412]
[1756820366345,1.54304093,110370.0,110360.0,0.0001412]
[1756820366563,1.35568093,110370.0,110360.0,0.0001412]
[1756820366789,1.49727754,110370.0,110360.0,0.0001412]
[1756820367005,1.31003754,110370.0,110360.0,0.0001412]
[1756820367229,1.19400273,110370.0,110360.0,0.0001412]
[1756820367445,0.52438866,110370.0,110360.0,0.0001412]
[1756820367740,0.85400273,110370.0,110360.0,0.0001412]
[1756820368543,0.85700273,110370.0,110360.0,0.0001412]
[1756820368906,0.85700273,110370.0,110360.0,0.0698212]
[1756820369107,0.85700273,110370.0,110360.0,0.2567812]
[1756820369716,0.003,110370.0,110360.0,0.44094628]
[1756820369930,0.67579407,110370.0,110360.0,0.16173719]
[1756820370151,0.67579407,110370.0,110360.0,0.34590227]
[1756820370382,0.85700273,110370.0,110360.0,0.0698212]
[1756820370782,0.67579407,110370.0,110360.0,0.43780628]
[1756820371030,0.67579407,110370.0,110360.0,0.44074628]
[1756820371454,0.67579407,110370.0,110360.0,0.53266227]
[1756820371885,0.85700273,110370.0,110360.0,0.52972227]
[1756820372033,0.85700273,110370.0,110360.0,0.34296227]
[1756820372238,0.85700273,110370.0,110360.0,0.0698212]
[1756820372441,0.85700273,110370.0,110360.0,0.0001412]
[1756820372646,0.18738866,110370.0,110360.0,0.0001412]
[1756820373014,0.86018273,110370.0,110360.0,0.0001412]
[1756820373228,1.31303754,110370.0,110360.0,0.0001412]
[1756820373647,1.29209872,110370.0,110360.0,0.0001412]
[1756820374753,1.31303754,110370.0,110360.0,0.0001412]
[1756820375195,1.36486578,110370.0,110360.0,0.0001412]
[1756820375861,1.48625662,110370.0,110360.0,1e-08]
[1756820376085,1.49258319,110370.0,110360.0,1e-08]
[1756820376306,1.48625662,110370.0,110360.0,1e-08]
[1756820376552,1.62355265,110370.0,110360.0,1e-08]
[1756820376769,1.56710838,110370.0,110360.0,1e-08]
[1756820376986,0.89427431,110370.0,110360.0,1e-08]
[1756820377225,1.57537253,110370.0,110360.0,1e-08]
[1756820377446,0.19038623,110320.0,110290.0,0.32878631]
[1756820377673,0.52130446,110330.0,110310.0,0.18621631]
[1756820377896,0.85408486,110320.0,110310.0,0.18621631]
[1756820378114,0.85408486,110320.0,110310.0,0.11561]
[1756820378308,1.52687893,110320.0,110310.0,0.11056]
[1756820378564,0.18132187,110310.0,110290.0,0.07276143]
[1756820378783,0.18130722,110310.0,110300.0,0.36887366]
[1756820379014,0.18130722,110310.0,110300.0,0.19049]
[1756820379473,0.18132366,110300.0,110290.0,0.06982143]
[1756820379872,0.85411773,110300.0,110290.0,0.25415153]
[1756820380327,0.85411773,110300.0,110290.0,0.06982143]
[1756820380552,0.37531532,110320.0,110300.0,0.18132366]
[1756820380794,0.18127489,110330.0,110310.0,0.18429242]
[1756820381007,0.18129079,110320.0,110310.0,0.18429242]
[1756820381225,0.18129079,110320.0,110310.0,0.18429722]
[1756820381451,0.18130241,110340.0,110330.0,0.18127435]
[1756820381702,0.18127435,110330.0,110310.0,0.18429722]
[1756820382145,0.85408486,110320.0,110310.0,0.18468]
[1756820382364,0.18129079,110320.0,110310.0,0.18468]
[1756820382579,0.18130722,110310.0,110300.0,0.18431366]
[1756820382799,0.85410129,110310.0,110300.0,0.00014143]
[1756820383308,0.94601728,110310.0,110300.0,0.00014143]
[1756820383525,0.85410129,110310.0,110300.0,0.00014143]
[1756820384849,1.4945561,110310.0,110300.0,0.00014143]
[1756820385069,1.3099161,110310.0,110300.0,0.00014143]
[1756820385505,1.28601728,110310.0,110300.0,0.00014143]
[1756820385716,1.28601728,110310.0,110300.0,0.00214143]
[1756820385935,1.19410129,110310.0,110300.0,0.00014143]
[1756820386359,1.28997728,110310.0,110300.0,0.00014143]
[1756820386589,1.28897728,110310.0,110300.0,0.00014143]
[1756820386824,0.85410129,110310.0,110300.0,0.00014143]
[1756820387730,0.85410129,110310.0,110300.0,0.00220143]
[1756820387956,0.85410129,110310.0,110300.0,0.00014143]
[1756820388175,0.94797728,110310.0,110300.0,0.00014143]
[1756820388395,0.85410129,110310.0,110300.0,0.00014143]
[1756820388844,0.85606129,110310.0,110300.0,0.00014143]
[1756820389284,1.06379209,110310.0,110300.0,0.00014143]
[1756820389507,1.40379209,110310.0,110300.0,0.00014143]
[1756820389725,1.42069306,110310.0,110300.0,0.00014143]
[1756820389943,1.48831825,110310.0,110300.0,0.00014143]
[1756820390160,1.49127804,110310.0,110300.0,0.00014143]
[1756820390384,1.51221686,110310.0,110300.0,0.00014143]
[1756820390667,1.32581686,110310.0,110300.0,0.00014143]
[1756820390862,1.51001686,110310.0,110300.0,0.00014143]
[1756820391080,1.60489285,110310.0,110300.0,0.00014143]
[1756820391731,1.60193285,110310.0,110300.0,0.00014143]
[1756820391943,1.51001686,110310.0,110300.0,0.00014143]
[1756820392152,1.51101686,110310.0,110300.0,0.00014143]
[1756820392383,0.20853837,110330.0,110300.0,0.00519143]
[1756820392609,0.18126037,110340.0,110320.0,0.18128764]
[1756820392835,0.18129079,110320.0,110310.0,0.07271]
[1756820393057,0.18130722,110310.0,110300.0,0.00014143]
[1756820393296,0.85410129,110310.0,110300.0,0.00014143]
[1756820393516,0.85902129,110310.0,110300.0,0.00014143]
[1756820393733,0.18130722,110310.0,110300.0,0.00014143]
[1756820393949,0.9718761,110310.0,110300.0,0.00014143]
[1756820394374,0.9689161,110310.0,110300.0,0.00014143]
[1756820394598,0.85606129,110310.0,110300.0,0.00014143]
[1756820394792,0.9669561,110310.0,110300.0,0.00014143]
[1756820395067,0.85410129,110310.0,110300.0,0.00014143]
[1756820395294,1.40379209,110310.0,110300.0,0.00014143]
[1756820395749,1.6829504,110310.0,110300.0,1e-08]
[1756820396006,1.68024347,110310.0,110300.0,1e-08]
[1756820396892,1.68124347,110310.0,110300.0,1e-08]
[1756820397136,1.90553183,110310.0,110300.0,1e-08]
[1756820398237,2.06324347,110310.0,110300.0,1e-08]
[1756820398705,2.06424347,110310.0,110300.0,1e-08]
[1756820398914,7.13853183,110310.0,110300.0,1e-08]
[1756820399124,6.28273776,110310.0,110300.0,1e-08]
[1756820399339,7.13889183,110310.0,110300.0,1e-08]
[1756820399559,7.08889183,110310.0,110300.0,1e-08]
[1756820399776,7.13889183,110310.0,110300.0,1e-08]
[1756820400000,7.12469832,110310.0,110300.0,1e-08]
[1756820400225,7.12469616,110310.0,110300.0,1e-08]
[1756820400447,0.18137299,110270.0,110260.0,0.07354631]
[1756820400678,0.1814388,110230.0,110220.0,0.07394631]
[1756820400900,1.30708768,110230.0,110220.0,0.07884607]
[1756820401152,1.30708768,110230.0,110220.0,0.07726055]
[1756820401389,0.63429361,110230.0,110220.0,0.00087448]
[1756820401607,1.50072905,110230.0,110220.0,0.00087448]
[1756820401825,1.06751133,110230.0,110220.0,0.00087448]
[1756820402042,1.06751133,110230.0,110220.0,0.00592448]
[1756820402266,0.34,110230.0,110220.0,0.00592448]
[1756820402490,1.06751133,110230.0,110220.0,0.00087448]
[1756820402957,1.06751133,110230.0,110220.0,0.00592448]
[1756820403185,1.12367807,110240.0,110220.0,0.00592448]
[1756820403401,1.50564905,110230.0,110220.0,0.00087448]
[1756820403618,1.06947133,110230.0,110220.0,0.00087448]
[1756820403835,1.06751133,110230.0,110220.0,0.00087448]
[1756820404055,1.15942732,110230.0,110220.0,0.00087448]
[1756820404279,1.16434732,110230.0,110220.0,0.00187448]
[1756820404502,1.59756504,110230.0,110220.0,0.00187448]
[1756820404717,1.64756504,110230.0,110220.0,0.00187448]
[1756820404950,1.66176873,110230.0,110220.0,1e-08]
[1756820405168,0.20241055,110210.0,110200.0,0.0004]
[1756820405394,1.34412198,110210.0,110200.0,0.00054145]
[1756820405618,0.43321772,110210.0,110200.0,0.1870782]
[1756820406049,0.43321772,110220.0,110210.0,0.18145811]
[1756820406317,0.43321772,110220.0,110210.0,0.25420811]
[1756820406973,0.18140625,110250.0,110230.0,0.1814388]
[1756820407195,1.04785885,110240.0,110230.0,0.00299]
[1756820407408,0.1814388,110230.0,110220.0,0.18145527]
[1756820407628,0.61465652,110230.0,110220.0,0.00299]
[1756820407869,0.61465652,110230.0,110210.0,0.06976]
[1756820407870,0.18145527,110220.0,110210.0,0.06976]
[1756820408084,0.19952167,110250.0,110210.0,0.07883358]
[1756820408308,0.19952167,110250.0,110220.0,0.09490599]
[1756820408309,0.1814388,110230.0,110220.0,0.09490599]
[1756820408527,0.43321772,110230.0,110220.0,0.18444527]
[1756820408742,0.52142301,110240.0,110230.0,0.1814388]
[1756820408969,0.95464073,110240.0,110230.0,0.1814388]
[1756820409194,1.38785845,110240.0,110230.0,0.1814388]
[1756820409418,0.18145269,110230.0,110210.0,0.53858108]
[1756820409638,0.18145527,110220.0,110210.0,0.52638772]
[1756820409850,0.18145527,110220.0,110210.0,0.43443173]
[1756820409851,0.61467299,110220.0,110210.0,0.43443173]
[1756820410304,0.43321772,110220.0,110210.0,0.07288]
[1756820410537,0.61467299,110220.0,110210.0,0.06976]
[1756820410985,0.18145527,110220.0,110210.0,0.06976]
[1756820411212,0.18145527,110220.0,110210.0,0.25435173]
[1756820411443,0.43321772,110220.0,110210.0,0.25435173]
[1756820411673,0.28239253,110250.0,110220.0,0.18145514]
[1756820411901,0.18140625,110250.0,110240.0,0.18142235]
[1756820412150,0.18142235,110240.0,110230.0,0.1845484]
[1756820412378,0.02434507,110290.0,110240.0,0.43922235]
[1756820412630,0.03572022,110290.0,110280.0,0.18135654]
[1756820412859,0.62360471,110320.0,110290.0,0.18132513]
[1756820413082,0.62360471,110320.0,110280.0,0.43751654]
[1756820413083,0.61454138,110300.0,110280.0,0.43751654]
[1756820413319,0.61454138,110300.0,110290.0,0.00312]
[1756820413795,0.1813401,110290.0,110280.0,0.46990145]
[1756820414014,0.61455782,110290.0,110280.0,0.25358145]
[1756820414255,0.61455782,110290.0,110280.0,0.06990145]
[1756820414515,0.1813401,110290.0,110280.0,0.06990145]
[1756820414734,0.61455782,110290.0,110280.0,0.25414145]
[1756820414956,1.53689673,110290.0,110280.0,0.00014145]
[1756820415195,0.63419491,110290.0,110280.0,0.36565799]
[1756820415425,1.06941263,110290.0,110280.0,0.18430145]
[1756820415612,1.06941263,110290.0,110280.0,0.00014145]
[1756820415850,1.06741263,110290.0,110280.0,0.00014145]
[1756820416074,1.16332862,110290.0,110280.0,0.00014145]
[1756820416294,0.004,110290.0,110280.0,0.00326145]
[1756820416532,0.61455782,110290.0,110280.0,0.00014145]
[1756820416744,0.1843401,110290.0,110280.0,0.18461799]
[1756820416957,0.61755782,110290.0,110280.0,0.18461799]
[1756820417175,0.43621772,110290.0,110280.0,0.18461799]
[1756820417388,0.43621772,110290.0,110280.0,0.18149799]
[1756820417611,0.61755782,110290.0,110280.0,0.00014145]
[1756820417832,0.61755782,110290.0,110280.0,0.18461799]
[1756820418080,0.1843401,110290.0,110280.0,0.18149799]
[1756820418307,0.61755782,110290.0,110280.0,0.18149799]
[1756820418527,0.003,110290.0,110280.0,0.27653398]
[1756820419171,0.43621772,110290.0,110280.0,0.36825799]
[1756820419404,0.43621772,110290.0,110280.0,0.18461799]
[1756820419631,0.43321772,110290.0,110280.0,0.37037799]
[1756820419818,0.20224628,110310.0,110290.0,0.1813401]
[1756820420058,0.63416227,110310.0,110300.0,0.18348]
[1756820420293,0.1813401,110290.0,110280.0,0.18354145]
[1756820420518,0.1813401,110290.0,110280.0,0.36489799]
[1756820420748,0.1813401,110290.0,110280.0,0.36789799]
[1756820420975,0.52130746,110310.0,110290.0,0.18134]
[1756820421205,0.43321772,110310.0,110300.0,0.1886]
[1756820421433,0.18132366,110300.0,110280.0,0.27953398]
[1756820421660,0.18130722,110310.0,110290.0,0.3678201]
[1756820421932,0.34,110320.0,110300.0,0.36516366]
[1756820422146,0.00844028,110320.0,110300.0,0.43804366]
[1756820422364,0.18131932,110340.0,110310.0,0.18657936]
[1756820422579,0.29100582,110340.0,110320.0,0.36549033]
[1756820422812,0.01777051,110340.0,110330.0,0.18127435]
[1756820423027,0.67185797,110360.0,110340.0,0.1812543]
[1756820423028,0.62359922,110360.0,110340.0,0.1812543]
[1756820423257,0.43321772,110350.0,110340.0,0.3653743]
[1756820423482,0.00843592,110360.0,110350.0,0.1812415]
[1756820423706,0.6144428,110360.0,110350.0,0.1812415]
[1756820423923,0.21791431,110380.0,110370.0,0.18120866]
[1756820424153,0.18120866,110370.0,110360.0,0.06976]
[1756820424373,0.18333866,110370.0,110360.0,0.06976]
[1756820424581,0.52333866,110370.0,110360.0,0.25376]
[1756820425011,0.1812415,110350.0,110340.0,0.001]
[1756820425240,0.1812415,110350.0,110340.0,0.25456]
[1756820425459,0.61658922,110350.0,110340.0,0.25456]
[1756820425668,0.61445922,110350.0,110340.0,0.25456]
[1756820425882,0.1812415,110350.0,110340.0,0.25368]
[1756820426106,0.28218508,110370.0,110350.0,0.18123994]
[1756820426331,0.62218508,110370.0,110360.0,0.18388]
[1756820426542,1.04847237,110370.0,110360.0,0.18388]
[1756820426776,0.95442638,110370.0,110360.0,0.36510508]
[1756820426993,0.61442638,110370.0,110360.0,0.36510508]
[1756820427221,0.18122508,110360.0,110350.0,0.18124033]
[1756820427434,0.43321772,110360.0,110350.0,0.36824033]
[1756820427645,0.43321772,110360.0,110350.0,0.37040033]
[1756820428112,0.43321772,110360.0,110350.0,0.18652033]
[1756820428333,0.43321772,110360.0,110350.0,0.00216]
[1756820428552,0.6144428,110360.0,110350.0,0.1812415]
[1756820428767,0.1812415,110350.0,110340.0,0.25397684]
[1756820428988,0.61445922,110350.0,110340.0,0.25624]
[1756820429250,0.19026909,110370.0,110350.0,0.1812415]
[1756820429464,0.43321772,110360.0,110350.0,0.1812415]
[1756820429687,0.00047525,110380.0,110360.0,0.18121419]
[1756820429928,0.00047525,110380.0,110370.0,0.53196465]
[1756820430146,0.61488521,110380.0,110370.0,0.06972]
[1756820430368,0.95701521,110380.0,110370.0,0.06972]
[1756820430596,0.18123326,110360.0,110350.0,0.06972]
[1756820430823,0.18123326,110360.0,110350.0,0.2536]
[1756820431051,1.3929187,110360.0,110350.0,0.07472]
[1756820431296,1.3929187,110360.0,110350.0,0.25848]
[1756820431297,1.3897987,110360.0,110350.0,0.25848]
[1756820431529,1.3897987,110360.0,110300.0,0.22104]
[1756820431530,0.18130722,110310.0,110300.0,0.22104]
[1756820431767,0.95452494,110310.0,110300.0,0.25452]
[1756820432201,0.95452494,110310.0,110300.0,0.06972]
[1756820432427,0.34,110310.0,110300.0,0.25964]
[1756820432649,0.1812913,110320.0,110300.0,0.44096366]
[1756820432841,0.61452494,110310.0,110300.0,0.44096366]
[1756820433091,0.61452494,110310.0,110300.0,0.25444]
[1756820433092,0.95452494,110310.0,110300.0,0.25444]
[1756820433317,0.1813401,110290.0,110280.0,0.40312]
[1756820433541,0.96619495,110310.0,110290.0,0.1813401]
[1756820433542,0.34047465,110310.0,110290.0,0.1813401]
[1756820433795,0.52178187,110310.0,110300.0,0.18988]
[1756820434044,0.95499959,110310.0,110300.0,0.18988]
[1756820434232,0.95499959,110310.0,110300.0,0.37120366]
[1756820434694,0.77369237,110310.0,110300.0,0.37120366]
[1756820434907,0.43369237,110310.0,110300.0,0.37120366]
[1756820435774,0.00047465,110310.0,110300.0,0.37120366]
[1756820435993,0.43369237,110310.0,110300.0,0.46311965]
[1756820436783,0.43369237,110310.0,110300.0,0.46611965]
[1756820437431,0.43369237,110310.0,110300.0,0.86611965]
[1756820437644,0.61499959,110310.0,110300.0,0.40828]
[1756820437854,0.61499959,110310.0,110300.0,0.58932]
[1756820438081,1.41127406,110310.0,110300.0,0.403]
[1756820438288,1.39346731,110310.0,110300.0,0.003]
[1756820438519,1.50632212,110310.0,110300.0,0.003]
[1756820438739,0.77369237,110310.0,110300.0,0.003]
[1756820438971,0.95499959,110310.0,110300.0,0.003]
[1756820439181,0.95707959,110310.0,110300.0,0.003]
[1756820439419,1.59821811,110310.0,110300.0,0.003]
[1756820439626,0.52133826,110300.0,110290.0,0.1838]
[1756820439847,1.3877737,110300.0,110290.0,0.1838]
[1756820440257,0.95455598,110300.0,110290.0,0.1838]
[1756820440714,0.95455598,110300.0,110290.0,0.3651401]
[1756820440926,0.95454138,110300.0,110290.0,0.3651401]
[1756820441135,0.95454138,110300.0,110290.0,0.1838]
[1756820441341,0.95454138,110300.0,110290.0,0.18348]
[1756820442225,0.43321772,110300.0,110290.0,0.3699801]
[1756820442428,0.00047465,110310.0,110300.0,0.18032366]
[1756820442653,0.43369237,110310.0,110300.0,0.18334366]
[1756820442873,0.43369237,110310.0,110300.0,0.67739965]
[1756820443752,0.43369237,110310.0,110300.0,0.67437965]
[1756820443974,0.43469237,110310.0,110300.0,0.68239965]
[1756820444177,0.00047465,110310.0,110300.0,0.67739965]
[1756820444379,0.43369237,110310.0,110300.0,0.67437965]
[1756820444611,0.43369237,110310.0,110300.0,0.67739965]
[1756820444818,0.43369237,110310.0,110300.0,0.27739965]
[1756820445027,0.00047465,110310.0,110300.0,0.27739965]
[1756820445226,0.61499959,110310.0,110300.0,0.67223965]
[1756820445432,0.43369237,110310.0,110300.0,0.67437965]
[1756820445631,0.43369237,110310.0,110300.0,0.85487965]
[1756820445632,0.61499959,110310.0,110300.0,0.85487965]
[1756820445843,0.61499959,110310.0,110300.0,0.5826]
[1756820446089,0.62614495,110310.0,110280.0,0.07274]
[1756820446294,0.62614495,110310.0,110280.0,0.06972]
[1756820446295,0.43321772,110290.0,110280.0,0.06972]
[1756820446520,0.18693187,110310.0,110290.0,0.18133118]
[1756820446732,0.18378187,110310.0,110300.0,0.36376366]
[1756820446987,0.00047465,110310.0,110300.0,0.36892366]
[1756820447368,0.1812262,110360.0,110340.0,0.18124379]
[1756820447590,0.00845437,110360.0,110350.0,0.3636015]
[1756820448012,1.39819489,110360.0,110350.0,0.18236]
[1756820448223,1.21696981,110360.0,110350.0,0.3636015]
[1756820448430,1.21488981,110360.0,110350.0,0.3636015]
[1756820448655,1.20643544,110360.0,110350.0,0.36374295]
[1756820448869,0.22075988,110380.0,110370.0,0.18120866]
[1756820448870,0.02724955,110380.0,110370.0,0.18120866]
[1756820449076,0.19536034,110390.0,110380.0,0.18119224]
[1756820449286,0.63910769,110390.0,110370.0,0.06972]
[1756820449499,0.63910769,110390.0,110350.0,0.25110295]
[1756820449500,0.70947595,110380.0,110350.0,0.25110295]
[1756820449708,0.6144428,110360.0,110350.0,0.06986145]
[1756820449923,0.95442923,110370.0,110350.0,0.43830295]
[1756820450132,0.95442923,110370.0,110350.0,0.43314295]
[1756820450133,0.43321772,110360.0,110350.0,0.43314295]
[1756820450351,0.61440996,110380.0,110360.0,0.18122437]
[1756820450556,0.52119224,110380.0,110370.0,0.182]
[1756820450777,0.95648996,110380.0,110370.0,0.182]
[1756820450986,0.43321772,110380.0,110370.0,0.36320866]
[1756820451402,0.18117583,110390.0,110380.0,0.18119224]
[1756820451615,0.00844572,110390.0,110380.0,0.18119224]
[1756820451821,0.6228389,110390.0,110380.0,0.06972]
[1756820452314,0.6228389,110390.0,110380.0,0.25091224]
[1756820452539,0.61439355,110390.0,110380.0,0.25091224]
[1756820452756,0.18119224,110380.0,110360.0,0.25094437]
[1756820452972,0.19023462,110390.0,110370.0,0.36272866]
[1756820453209,0.18119224,110380.0,110370.0,0.18120866]
[1756820453416,0.61440996,110380.0,110370.0,0.18120866]
[1756820453642,0.19023462,110390.0,110370.0,0.36260866]
[1756820453832,0.18119224,110380.0,110370.0,0.18120652]
[1756820454053,0.61440996,110380.0,110370.0,0.36256652]
[1756820454263,0.61439355,110390.0,110370.0,0.36256652]
[1756820454484,0.61444698,110400.0,110380.0,0.18119224]
[1756820454694,0.34843742,110400.0,110390.0,0.36241583]
[1756820454904,0.52959684,110400.0,110390.0,0.36241583]
[1756820455115,0.21754474,110420.0,110400.0,0.18114988]
[1756820455322,0.21754474,110420.0,110410.0,0.36238301]
[1756820455323,0.00843238,110420.0,110410.0,0.36238301]
[1756820455532,0.4416501,110420.0,110410.0,0.36754301]
[1756820455741,0.4416501,110420.0,110410.0,0.1833]
[1756820455952,0.4416501,110420.0,110410.0,0.36244446]
[1756820455953,0.00843238,110420.0,110410.0,0.36244446]
[1756820456175,0.43321772,110420.0,110410.0,0.58128446]
[1756820456428,0.61434432,110420.0,110410.0,0.18122145]
[1756820456634,0.61432911,110430.0,110420.0,0.1811266]
[1756820456841,0.34842295,110430.0,110420.0,0.2508066]
[1756820457060,0.00842295,110430.0,110420.0,0.6508066]
[1756820457269,0.18953315,110430.0,110420.0,0.6529466]
[1756820457476,0.62274289,110430.0,110420.0,0.46968]
[1756820457681,0.18952517,110430.0,110420.0,0.46968]
[1756820457887,0.62274289,110430.0,110420.0,0.06968]
[1756820458090,0.62274289,110430.0,110420.0,0.25064]
[1756820458294,0.61432792,110430.0,110420.0,0.25064]
[1756820458506,0.61432792,110430.0,110420.0,0.25164]
[1756820458710,0.61431236,110440.0,110420.0,0.4379266]
[1756820458921,0.34840792,110440.0,110430.0,0.1811102]
[1756820459130,0.44162564,110440.0,110430.0,0.1832502]
[1756820459334,1.7417504,110450.0,110430.0,0.3641702]
[1756820459540,0.61431152,110440.0,110430.0,0.1811102]
[1756820459796,0.61431152,110440.0,110430.0,0.3620302]
[1756820460015,0.1811102,110430.0,110420.0,0.34574259]
[1756820460229,0.61431152,110440.0,110430.0,0.1811102]
[1756820460435,1.56067299,110450.0,110440.0,0.1810938]
[1756820460648,2.17496812,110450.0,110440.0,0.1810938]
[1756820460896,1.56067299,110450.0,110440.0,0.1832338]
[1756820461108,1.56067299,110450.0,110440.0,0.27816979]
[1756820461541,1.56067299,110450.0,110440.0,0.45908979]
[1756820461750,1.56067299,110450.0,110440.0,0.46008979]
[1756820462198,1.56067299,110450.0,110440.0,0.45908979]
[1756820462631,1.56067299,110450.0,110440.0,1.13003074]
[1756820462854,0.91745541,110450.0,110440.0,1.52003074]
[1756820463061,0.91745541,110450.0,110440.0,1.46999074]
[1756820463268,0.91745541,110450.0,110440.0,0.90084824]
[1756820463701,0.91745541,110450.0,110440.0,1.57178919]
[1756820463937,0.91745541,110450.0,110440.0,1.39490919]
[1756820464141,0.91745541,110450.0,110440.0,1.57578919]
[1756820464356,0.91745541,110450.0,110440.0,1.57178919]
[1756820464559,0.35987695,110450.0,110440.0,1.96473919]
[1756820464777,0.03599013,110450.0,110440.0,2.06473919]
[1756820465207,0.03599013,110450.0,110440.0,2.06873919]
[1756820465423,0.03599013,110450.0,110440.0,1.88385919]
[1756820465646,0.03599013,110450.0,110440.0,2.06469919]
[1756820466164,0.03599013,110450.0,110440.0,1.05996824]
[1756820466373,0.03599013,110450.0,110440.0,1.96174919]
[1756820466577,0.03599013,110450.0,110440.0,1.91174919]
[1756820466789,0.03599013,110450.0,110440.0,1.96174919]
[1756820467209,0.03599013,110450.0,110440.0,2.01174919]
[1756820467463,0.0002,110480.0,110470.0,0.18104462]
[1756820467679,0.0002,110480.0,110470.0,0.52340061]
[1756820467918,0.0002,110480.0,110470.0,0.52856061]
[1756820468115,0.0002,110480.0,110470.0,0.92856061]
[1756820468473,0.0002,110480.0,110470.0,1.59950156]
[1756820468690,0.00067555,110480.0,110470.0,1.64950156]
[1756820469101,0.00067555,110480.0,110470.0,1.41870156]
[1756820469322,0.00067555,110480.0,110470.0,0.92856061]
[1756820469737,0.00067555,110480.0,110470.0,0.56755599]
[1756820469961,0.52691379,110480.0,110470.0,0.006]
[1756820470187,1.19785474,110480.0,110470.0,0.1868]
[1756820470406,0.34276555,110480.0,110470.0,0.36784462]
[1756820470616,0.00276555,110480.0,110470.0,0.36784462]
[1756820470826,0.00276555,110480.0,110470.0,0.19304462]
[1756820471034,0.85785474,110480.0,110470.0,0.012]
[1756820471245,0.18104462,110470.0,110460.0,0.18076]
[1756820471483,0.67303095,110470.0,110460.0,0.36182101]
[1756820471688,0.18682379,110480.0,110460.0,0.453737]
[1756820471689,0.00267555,110480.0,110460.0,0.453737]
[1756820471897,0.85407557,110470.0,110460.0,0.09191599]
[1756820472102,0.18106101,110460.0,110450.0,0.65071738]
[1756820472307,0.85719557,110470.0,110450.0,0.92339337]
[1756820472521,0.85200196,110460.0,110450.0,0.56155599]
[1756820472765,0.85200196,110460.0,110450.0,0.6504]
[1756820473180,0.85409196,110460.0,110450.0,0.6504]
[1756820473593,0.85721196,110460.0,110450.0,0.2504]
[1756820474270,0.19075652,110480.0,110470.0,0.18104462]
[1756820474271,0.34067555,110480.0,110470.0,0.18104462]
[1756820474474,0.00067555,110480.0,110470.0,0.36176462]
[1756820474701,0.00067555,110480.0,110470.0,0.45866061]
[1756820474915,0.00067555,110480.0,110470.0,0.45368061]
[1756820475358,0.00067555,110480.0,110470.0,0.45866061]
[1756820475581,0.00067555,110480.0,110470.0,0.49858815]
[1756820475779,0.00067555,110480.0,110470.0,0.50158815]
[1756820477093,0.00067555,110480.0,110470.0,0.71918815]
[1756820477226,0.00067555,110480.0,110470.0,0.76918815]
[1756820477425,0.00067555,110480.0,110470.0,1.16918815]
[1756820477652,0.00067555,110480.0,110470.0,1.8401291]
[1756820477859,0.00067555,110480.0,110470.0,0.71588815]
[1756820478235,0.00067555,110480.0,110470.0,0.92328061]
[1756820478236,0.6716165,110480.0,110470.0,0.92328061]
[1756820478435,0.00067555,110480.0,110470.0,0.92928061]
[1756820478628,0.6716165,110480.0,110470.0,0.92328061]
[1756820479021,0.00167555,110480.0,110470.0,0.93028061]
[1756820479168,0.18270379,110480.0,110470.0,0.93028061]
[1756820479363,0.18270379,110480.0,110470.0,0.92328061]
[1756820479364,0.00067555,110480.0,110470.0,0.92328061]
[1756820479607,0.00067555,110480.0,110470.0,0.74260061]
[1756820479830,0.00067555,110480.0,110470.0,0.74523599]
[1756820480034,0.6716165,110480.0,110470.0,0.92628061]
[1756820480252,0.00067555,110480.0,110470.0,0.92628061]
[1756820480469,0.6716165,110480.0,110470.0,0.74523599]
[1756820480678,0.00067555,110480.0,110470.0,0.92826061]
[1756820480890,0.00067555,110480.0,110470.0,0.93126061]
[1756820481316,0.6716165,110480.0,110470.0,0.92628061]
[1756820481536,0.6716165,110480.0,110470.0,0.74260061]
[1756820481746,0.6716165,110480.0,110470.0,0.92328061]
[1756820481955,0.00067555,110480.0,110470.0,0.74758061]
[1756820482174,0.00067555,110480.0,110470.0,0.18064]
[1756820482175,0.86690615,110480.0,110470.0,0.18064]
[1756820482378,0.18106101,110460.0,110450.0,0.0696]
[1756820482583,0.85200196,110460.0,110450.0,0.0696]
[1756820482793,0.85721196,110460.0,110450.0,0.0696]
[1756820483014,0.1810938,110440.0,110430.0,0.0696]
[1756820483219,0.85203475,110440.0,110430.0,0.0696]
[1756820483425,0.85724475,110440.0,110430.0,0.25024]
[1756820483633,0.00521,110440.0,110430.0,0.25024]
[1756820483835,0.1810916,110450.0,110430.0,0.4313502]
[1756820484040,0.85203475,110440.0,110430.0,0.4313502]
[1756820484271,0.85412475,110440.0,110430.0,0.25024]
[1756820484476,0.85772,110440.0,110430.0,0.25024]
[1756820484715,0.8546,110440.0,110430.0,0.4313502]
[1756820484868,0.8546,110440.0,110430.0,0.25024]
[1756820485072,0.85772,110440.0,110430.0,0.25024]
[1756820485295,0.00568525,110440.0,110430.0,0.4313502]
[1756820485488,0.6735062,110440.0,110430.0,0.4313502]
[1756820485692,0.6735062,110440.0,110430.0,0.4323502]
[1756820485927,0.00047525,110440.0,110430.0,0.52624619]